[Event "Lueneburg Open-A 2019"]
[Site "Lueneburg"]
[Date "2019.08.11"]
[Round "9.19"]
[White "Haas, Frank-Martin"]
[Black "Prasse, Philipp"]
[Result "1-0"]
[ECO "B13"]
[WhiteElo "2152"]
[BlackElo "2003"]
[Annotator "NA"]
[PlyCount "115"]
[EventDate "2019.08.03"]
[EventType "swiss"]
[EventCountry "GER"]
[SourceTitle "playchess.com"]
[Source "ChessBase"]
[SourceQuality "1"]
[TimeControl "40/5400+30:1800+30"]

1. e4 {[%emt 0:00:00]} c6 {[%emt 0:00:00]} 2. d4 {[%emt 0:00:00]} d5 {[%emt 0:00:00]} 3. exd5 {[%emt 0:00:00]} cxd5 {[%emt 0:00:00]} 4. c4 {[%emt 0:00:00]} Nf6 {[%emt 0:00:00]} 5. Nc3 {[%emt 0:00:00]} Nc6 {[%emt 0:00:00]} 6. Nf3 {[%emt 0:00:12]} Bg4 {[%emt 0:00:00]} 7. cxd5 {[%emt 0:00:21]} Nxd5 {[%emt 0:00:10]} 8. Qb3 {[%emt 0:00:11]} Bxf3 {[%emt 0:00:20]} 9. gxf3 {[%emt 0:00:30]} e6 {[%emt 0:00:12]} 10. Qxb7 {[%emt 0:00:22]} Nxd4 {[%emt 0:00:09]} 11. Bb5+ {[%emt 0:00:16]} Nxb5 {[%emt 0:00:05]} 12. Qc6+ {[%emt 0:00:11]} Ke7 {[%emt 0:01:10]} 13. Qxb5 {[%emt 0:00:14]} Qd7 {[%emt 0:00:59]} 14. Nxd5+ {[%emt 0:01:29]} Qxd5 {[%emt 0:00:19]} 15. Bg5+ {[%emt 0:00:16]} f6 {[%emt 0:00:11]} 16. Qxd5 {[%emt 0:00:22]} exd5 {[%emt 0:00:07]} 17. Be3 {[%emt 0:00:04]} Ke6 {[%emt 0:00:20]} 18. O-O-O {[%emt 0:00:09]} Bb4 {[%emt 0:00:14]} 19. Kb1 {[%emt 0:00:13]} Rhd8 {[%emt 0:00:13]} 20. Rd3 {[%emt 0:03:38]} Rd7 {[%emt 0:05:56]} 21. Rc1 {[%emt 0:05:00]} Rad8 {[%emt 0:07:10]} 22. Rc6+ {[%emt 0:09:58]} Kf5 {[%emt 0:10:13]} 23. a3 {[%emt 0:05:51]} d4 {[%emt 0:10:30]} 24. axb4 {[%emt 0:25:31]} dxe3 {[%emt 0:00:41]} 25. Rxe3 {[%emt 0:00:05]} Rd2 {[%emt 0:24:33]} 26. Rc2 {[%emt 0:14:55]} Kf4 {[%emt 0:04:28]} 27. Re7 {[%emt 0:07:54]} R8d7 {[%emt 0:03:34]} 28. Rc7 {[%emt 0:02:23]} Rxe7 {[%emt 0:01:18]} 29. Rxe7 {[%emt 0:00:05]} Rxf2 {[%emt 0:00:27]} 30. Rxg7 {[%emt 0:05:01]} Rxh2 {[%emt 0:00:39]} 31. Rxa7 {[%emt 0:00:09]} Kxf3 {[%emt 0:09:40]} 32. Rf7 {[%emt 0:04:37]} Ke4 {[%emt 0:01:24]} 33. Rxf6 {[%emt 0:05:28]} Ke5 {[%emt 0:01:09]} 34. Rf3 {[%emt 0:02:49]} Kd5 {[%emt 0:03:45]} 35. Rf4 {[%emt 0:03:12]} Kc6 {[%emt 0:05:07]} 36. Ka2 {[%emt 0:01:20]} Kb5 {[%emt 0:00:37]} 37. Ka3 {[%emt 0:00:20]} Rh5 {[%emt 0:07:53]} 38. Rf8 {[%emt 0:01:38]} Rg5 {[%emt 0:01:33]} 39. Rb8+ {[%emt 0:00:21]} Kc6 {[%emt 0:00:19]} 40. Rh8 {[%emt 0:00:07]} h5 {[%emt 0:00:31]} 41. Ka4 {[%emt 0:30:10]} Rg2 {[%emt 0:04:26]} 42. Rh6+ {[%emt 0:00:00]} Kb7 {[%emt 0:00:55]} 43. b3 {[%emt 0:00:00]} Rh2 {[%emt 0:12:05]} 44. Kb5 {[%emt 0:00:00]} h4 {[%emt 0:00:36]} 45. Rh7+ {[%emt 0:00:00]} Kc8 {[%emt 0:00:26]} 46. Kc6 {[%emt 0:00:00]} Rc2+ {[%emt 0:00:22]} 47. Kb6 {[%emt 0:00:00]} Rc3 {[%emt 0:01:41]} 48. Rxh4 {[%emt 0:00:00]} Rxb3 {[%emt 0:00:06]} 49. b5 {[%emt 0:00:00]} Rg3 {[%emt 0:01:52]} 50. Rh8+ {[%emt 0:00:00]} Kd7 {[%emt 0:00:01]} 51. Kb7 {[%emt 0:00:00]} Rg6 {[%emt 0:02:28]} 52. b6 {[%emt 0:00:00]} Rf6 {[%emt 0:04:47]} 53. Rh1 {[%emt 0:00:00]} Kd6 {[%emt 0:02:04]} 54. Rc1 {[%emt 0:00:00]} Rf2 {[%emt 0:02:49]} 55. Kb8 {[%emt 0:00:00]} Rb2 {[%emt 0:00:52]} 56. b7 {[%emt 0:00:00]} Kd7 {[%emt 0:00:14]} 57. Rd1+ {[%emt 0:00:00]} Ke7 {[%emt 0:00:30]} 58. Rd4 {[%emt 0:00:00]} 1-0

[Event "Lueneburg Open-A 2019"]
[Site "Lueneburg"]
[Date "2019.08.11"]
[Round "9.21"]
[White "Rick, Uwe"]
[Black "Fabregas, Oliver"]
[Result "1-0"]
[ECO "A21"]
[WhiteElo "2113"]
[BlackElo "1956"]
[Annotator "NA"]
[PlyCount "127"]
[EventDate "2019.08.03"]
[EventType "swiss"]
[EventCountry "GER"]
[SourceTitle "playchess.com"]
[Source "ChessBase"]
[SourceQuality "1"]
[TimeControl "40/5400+30:1800+30"]

1. c4 {[%emt 0:00:00]} e5 {[%emt 0:00:00]} 2. g3 {[%emt 0:00:00]} f5 {[%emt 0:00:00]} 3. Bg2 {[%emt 0:00:00]} Nf6 {[%emt 0:00:00]} 4. Nc3 {[%emt 0:00:00]} Bb4 {[%emt 0:04:57]} 5. Nd5 {[%emt 0:06:11]} Nxd5 {[%emt 0:02:54]} 6. cxd5 {[%emt 0:00:31]} O-O {[%emt 0:04:34]} 7. e3 {[%emt 0:11:00]} Bd6 {[%emt 0:08:01]} 8. f4 {[%emt 0:04:41]} exf4 {[%emt 0:03:32]} 9. exf4 {[%emt 0:00:40]} Re8+ {[%emt 0:02:47]} 10. Ne2 {[%emt 0:03:58]} Qe7 {[%emt 0:02:57]} 11. Kf2 {[%emt 0:07:05]} Bc5+ {[%emt 0:12:18]} 12. d4 {[%emt 0:03:04]} Bb6 {[%emt 0:00:15]} 13. Re1 {[%emt 0:18:29]} d6 {[%emt 0:02:01]} 14. Qd3 {[%emt 0:04:13]} Nd7 {[%emt 0:08:37]} 15. Bd2 {[%emt 0:02:39]} Nf6 {[%emt 0:04:32]} 16. Nc3 {[%emt 0:00:41]} Qf7 {[%emt 0:04:53]} 17. Rxe8+ {[%emt 0:02:06]} Qxe8 {[%emt 0:00:11]} 18. a4 {[%emt 0:08:03]} a5 {[%emt 0:07:53]} 19. Re1 {[%emt 0:01:53]} Qf7 {[%emt 0:01:31]} 20. Bf3 {[%emt 0:05:50]} Bd7 {[%emt 0:00:52]} 21. Kg2 {[%emt 0:00:37]} Re8 {[%emt 0:00:52]} 22. b3 {[%emt 0:02:47]} g6 {[%emt 0:02:52]} 23. Rxe8+ {[%emt 0:03:15]} Qxe8 {[%emt 0:00:09]} 24. Be3 {[%emt 0:04:09]} Kg7 {[%emt 0:01:35]} 25. h3 {[%emt 0:00:56]} Qe7 {[%emt 0:01:31]} 26. Bf2 {[%emt 0:00:22]} Be8 {[%emt 0:01:59]} 27. g4 {[%emt 0:01:23]} Bd7 {[%emt 0:02:21]} 28. g5 {[%emt 0:02:36]} Ng8 {[%emt 0:00:44]} 29. h4 {[%emt 0:00:26]} Be8 {[%emt 0:02:27]} 30. h5 {[%emt 0:01:45]} Bf7 {[%emt 0:05:52]} 31. h6+ {[%emt 0:00:24]} Kf8 {[%emt 0:00:13]} 32. Qe3 {[%emt 0:00:32]} Ke8 {[%emt 0:00:56]} 33. Kf1 {[%emt 0:00:45]} Kd7 {[%emt 0:01:26]} 34. Ke2 {[%emt 0:00:35]} Kc8 {[%emt 0:02:58]} 35. Kd3 {[%emt 0:02:28]} Kd7 {[%emt 0:01:05]} 36. Kc4 {[%emt 0:01:50]} c6 {[%emt 0:02:40]} 37. Kd3 {[%emt 0:00:01]} Qxe3+ {[%emt 0:01:39]} 38. Bxe3 {[%emt 0:00:10]} Ne7 {[%emt 0:01:17]} 39. dxc6+ {[%emt 0:00:19]} bxc6 {[%emt 0:01:07]} 40. Bd1 {[%emt 0:01:26]} d5 {[%emt 0:02:09]} 41. Bd2 {[%emt 0:30:44]} Nc8 {[%emt 0:30:48]} 42. Ne2 {[%emt 0:00:00]} Nd6 {[%emt 0:00:00]} 43. Be1 {[%emt 0:00:00]} Ne4 {[%emt 0:00:00]} 44. b4 {[%emt 0:00:00]} axb4 {[%emt 0:00:00]} 45. Bxb4 {[%emt 0:00:00]} Nf2+ {[%emt 0:00:00]} 46. Kc2 {[%emt 0:00:00]} Be8 {[%emt 0:00:00]} 47. a5 {[%emt 0:00:00]} Ba7 {[%emt 0:00:00]} 48. Nc1 {[%emt 0:00:00]} Kc7 {[%emt 0:00:00]} 49. Nb3 {[%emt 0:00:00]} Nxd1 {[%emt 0:00:00]} 50. Kxd1 {[%emt 0:00:00]} Kb7 {[%emt 0:00:00]} 51. Bd6 {[%emt 0:00:00]} Ka6 {[%emt 0:00:00]} 52. Kd2 {[%emt 0:00:00]} Kb5 {[%emt 0:00:00]} 53. Kc3 {[%emt 0:00:00]} Bd7 {[%emt 0:00:00]} 54. Bc7 {[%emt 0:00:00]} Bc8 {[%emt 0:00:00]} 55. Nc1 {[%emt 0:00:00]} c5 {[%emt 0:00:00]} 56. dxc5 {[%emt 0:00:00]} Kxc5 {[%emt 0:00:00]} 57. Nd3+ {[%emt 0:00:00]} Kc6 {[%emt 0:00:00]} 58. Bb6 {[%emt 0:00:00]} Bb8 {[%emt 0:00:00]} 59. Kd4 {[%emt 0:00:00]} Kd6 {[%emt 0:06:40]} 60. Ne5 {[%emt 0:00:00]} Ke6 {[%emt 0:01:30]} 61. Nxg6 {[%emt 0:00:00]} Kf7 {[%emt 0:00:39]} 62. Ne5+ {[%emt 0:00:00]} Bxe5+ {[%emt 0:01:32]} 63. Kxe5 {[%emt 0:00:00]} d4 {[%emt 0:01:02]} 64. Bxd4 {[%emt 0:13:26]} 1-0

[Event "Lueneburg Open-A 2019"]
[Site "Lueneburg"]
[Date "2019.08.11"]
[Round "9.22"]
[White "Klages, Hans Juergen"]
[Black "Meschke, Oliver"]
[Result "1/2-1/2"]
[ECO "A89"]
[WhiteElo "2095"]
[BlackElo "1900"]
[Annotator "NA"]
[PlyCount "55"]
[EventDate "2019.08.03"]
[EventType "swiss"]
[EventCountry "GER"]
[SourceTitle "playchess.com"]
[Source "ChessBase"]
[SourceQuality "1"]
[TimeControl "40/5400+30:1800+30"]

1. d4 {[%emt 0:00:00]} f5 {[%emt 0:00:00]} 2. g3 {[%emt 0:00:00]} Nf6 {[%emt 0:00:00]} 3. Bg2 {[%emt 0:00:01]} g6 {[%emt 0:00:00]} 4. Nf3 {[%emt 0:00:14]} Bg7 {[%emt 0:00:00]} 5. O-O {[%emt 0:00:06]} O-O {[%emt 0:00:04]} 6. c4 {[%emt 0:00:19]} d6 {[%emt 0:00:09]} 7. Nc3 {[%emt 0:00:15]} Nc6 {[%emt 0:00:22]} 8. d5 {[%emt 0:01:13]} Ne5 {[%emt 0:00:42]} 9. Nxe5 {[%emt 0:03:00]} dxe5 {[%emt 0:00:21]} 10. e4 {[%emt 0:00:17]} f4 {[%emt 0:00:10]} 11. b4 {[%emt 0:13:34]} e6 {[%emt 0:04:34]} 12. Bb2 {[%emt 0:06:39]} exd5 {[%emt 0:04:22]} 13. exd5 {[%emt 0:00:06]} a5 {[%emt 0:09:59]} 14. a3 {[%emt 0:01:16]} axb4 {[%emt 0:01:59]} 15. axb4 {[%emt 0:00:07]} Rxa1 {[%emt 0:00:09]} 16. Bxa1 {[%emt 0:00:24]} Bf5 {[%emt 0:06:07]} 17. Re1 {[%emt 0:00:25]} Re8 {[%emt 0:03:39]} 18. Ne4 {[%emt 0:00:26]} Nxe4 {[%emt 0:05:51]} 19. Bxe4 {[%emt 0:00:09]} Bxe4 {[%emt 0:00:14]} 20. Rxe4 {[%emt 0:00:05]} fxg3 {[%emt 0:00:03]} 21. hxg3 {[%emt 0:00:28]} b6 {[%emt 0:00:27]} 22. c5 {[%emt 0:06:23]} bxc5 {[%emt 0:02:17]} 23. bxc5 {[%emt 0:00:09]} Qa8 {[%emt 0:01:02]} 24. f4 {[%emt 0:11:21]} exf4 {[%emt 0:04:33]} 25. Rxe8+ {[%emt 0:00:10]} Qxe8 {[%emt 0:00:11]} 26. Bxg7 {[%emt 0:01:02]} Qe3+ {[%emt 0:02:20]} 27. Kf1 {[%emt 0:03:45]} Kxg7 {[%emt 0:00:47]} 28. d6 {[%emt 0:52:06]} 1/2-1/2

[Event "Lueneburg Open-A 2019"]
[Site "Lueneburg"]
[Date "2019.08.11"]
[Round "9.23"]
[White "Bosselmann, Tom Linus"]
[Black "Koellner, Christof"]
[Result "1-0"]
[ECO "E88"]
[WhiteElo "2000"]
[BlackElo "2091"]
[Annotator "NA"]
[PlyCount "137"]
[EventDate "2019.08.03"]
[EventType "swiss"]
[EventCountry "GER"]
[SourceTitle "playchess.com"]
[Source "ChessBase"]
[SourceQuality "1"]
[TimeControl "40/5400+30:1800+30"]

1. d4 {[%emt 0:00:00]} Nf6 {[%emt 0:01:18]} 2. c4 {[%emt 0:00:40]} d6 {[%emt 0:00:41]} 3. Nc3 {[%emt 0:00:12]} g6 {[%emt 0:00:49]} 4. e4 {[%emt 0:01:00]} Bg7 {[%emt 0:00:26]} 5. f3 {[%emt 0:01:08]} O-O {[%emt 0:00:28]} 6. Be3 {[%emt 0:01:13]} e5 {[%emt 0:00:50]} 7. d5 {[%emt 0:00:30]} c6 {[%emt 0:00:44]} 8. Qd2 {[%emt 0:01:13]} cxd5 {[%emt 0:05:41]} 9. cxd5 {[%emt 0:00:28]} Ne8 {[%emt 0:12:03]} 10. g4 {[%emt 0:01:29]} f5 {[%emt 0:03:45]} 11. exf5 {[%emt 0:05:41]} gxf5 {[%emt 0:00:19]} 12. h3 {[%emt 0:00:52]} Qh4+ {[%emt 0:08:44]} 13. Bf2 {[%emt 0:00:35]} Qf6 {[%emt 0:00:31]} 14. g5 {[%emt 0:03:11]} Qe7 {[%emt 0:03:39]} 15. O-O-O {[%emt 0:01:51]} Na6 {[%emt 0:00:08]} 16. Kb1 {[%emt 0:02:49]} Bd7 {[%emt 0:02:29]} 17. h4 {[%emt 0:02:24]} Nec7 {[%emt 0:01:32]} 18. h5 {[%emt 0:02:08]} h6 {[%emt 0:10:46]} 19. Bh4 {[%emt 0:04:06]} hxg5 {[%emt 0:07:55]} 20. Bxg5 {[%emt 0:02:21]} Bf6 {[%emt 0:00:10]} 21. Nh3 {[%emt 0:00:58]} Kh8 {[%emt 0:02:16]} 22. Rg1 {[%emt 0:00:30]} Rg8 {[%emt 0:02:09]} 23. Be2 {[%emt 0:06:48]} f4 {[%emt 0:04:01]} 24. Bxf6+ {[%emt 0:02:46]} Qxf6 {[%emt 0:00:08]} 25. Ne4 {[%emt 0:02:21]} Bf5 {[%emt 0:05:09]} 26. Nhf2 {[%emt 0:02:04]} Nc5 {[%emt 0:06:47]} 27. Bd3 {[%emt 0:01:55]} Bxe4 {[%emt 0:01:28]} 28. Nxe4 {[%emt 0:00:17]} Nxe4 {[%emt 0:00:33]} 29. Bxe4 {[%emt 0:00:06]} Rg3 {[%emt 0:03:36]} 30. Qf2 {[%emt 0:06:04]} Qg5 {[%emt 0:00:38]} 31. h6 {[%emt 0:06:40]} Ne8 {[%emt 0:01:29]} 32. Rxg3 {[%emt 0:05:27]} fxg3 {[%emt 0:01:18]} 33. Qg2 {[%emt 0:00:16]} Nf6 {[%emt 0:00:30]} 34. Bc2 {[%emt 0:01:40]} Rg8 {[%emt 0:01:40]} 35. h7 {[%emt 0:02:20]} Rg7 {[%emt 0:01:07]} 36. Qh3 {[%emt 0:00:25]} e4 {[%emt 0:06:16]} 37. Qc8+ {[%emt 0:02:42]} Kxh7 {[%emt 0:00:30]} 38. Rh1+ {[%emt 0:01:33]} Kg6 {[%emt 0:00:43]} 39. fxe4 {[%emt 0:00:04]} Qe5 {[%emt 0:00:47]} 40. Rg1 {[%emt 0:03:26]} Nh5 {[%emt 0:01:20]} 41. Bd1 {[%emt 0:31:27]} Kg5 {[%emt 0:34:22]} 42. Qh3 {[%emt 0:06:07]} Kh6 {[%emt 0:00:00]} 43. Bf3 {[%emt 0:00:00]} Rg5 {[%emt 0:00:00]} 44. Bxh5 {[%emt 0:00:00]} Rxh5 {[%emt 0:00:00]} 45. Qxg3 {[%emt 0:00:00]} Qxg3 {[%emt 0:00:00]} 46. Rxg3 {[%emt 0:00:00]} Re5 {[%emt 0:00:00]} 47. Rg4 {[%emt 0:00:00]} Re7 {[%emt 0:00:00]} 48. Kc2 {[%emt 0:00:00]} Kh5 {[%emt 0:00:00]} 49. Rg8 {[%emt 0:00:00]} Rxe4 {[%emt 0:00:00]} 50. Rd8 {[%emt 0:00:00]} Kg5 {[%emt 0:00:00]} 51. Rxd6 {[%emt 0:00:00]} Kf5 {[%emt 0:00:00]} 52. Rd7 {[%emt 0:00:00]} Rb4 {[%emt 0:00:00]} 53. Kc3 {[%emt 0:00:00]} a5 {[%emt 0:00:00]} 54. a3 {[%emt 0:00:00]} Rb6 {[%emt 0:00:00]} 55. b3 {[%emt 0:00:00]} Ke5 {[%emt 0:00:00]} 56. Kc4 {[%emt 0:00:00]} Kf6 {[%emt 0:00:11]} 57. b4 {[%emt 0:00:00]} axb4 {[%emt 0:00:58]} 58. axb4 {[%emt 0:00:00]} Ra6 {[%emt 0:02:16]} 59. Rxb7 {[%emt 0:00:00]} Ra1 {[%emt 0:00:17]} 60. Kc5 {[%emt 0:00:00]} Rc1+ {[%emt 0:00:13]} 61. Kd6 {[%emt 0:00:00]} Kf5 {[%emt 0:00:24]} 62. b5 {[%emt 0:00:00]} Ke4 {[%emt 0:00:07]} 63. b6 {[%emt 0:00:00]} Rh1 {[%emt 0:00:24]} 64. Re7+ {[%emt 0:00:00]} Kd4 {[%emt 0:00:00]} 65. b7 {[%emt 0:00:00]} Rb1 {[%emt 0:00:18]} 66. Rg7 {[%emt 0:00:00]} Rb5 {[%emt 0:01:03]} 67. Kc7 {[%emt 0:00:00]} Rc5+ {[%emt 0:00:21]} 68. Kb6 {[%emt 0:00:00]} Rxd5 {[%emt 0:00:22]} 69. b8=Q {[%emt 0:00:00]} 1-0

[Event "Lueneburg Open-A 2019"]
[Site "Lueneburg"]
[Date "2019.08.11"]
[Round "9.24"]
[White "Garbuszus, Juergen"]
[Black "Thanisch, Matthias"]
[Result "1-0"]
[ECO "B10"]
[WhiteElo "2070"]
[BlackElo "1991"]
[Annotator "NA"]
[PlyCount "71"]
[EventDate "2019.08.03"]
[EventType "swiss"]
[EventCountry "GER"]
[SourceTitle "playchess.com"]
[Source "ChessBase"]
[SourceQuality "1"]
[TimeControl "40/5400+30:1800+30"]

1. e4 {[%emt 0:00:00]} c6 {[%emt 0:00:00]} 2. Nf3 {[%emt 0:00:00]} d5 {[%emt 0:00:01]} 3. exd5 {[%emt 0:00:00]} cxd5 {[%emt 0:00:07]} 4. Ne5 {[%emt 0:00:11]} Nf6 {[%emt 0:02:52]} 5. d4 {[%emt 0:00:06]} g6 {[%emt 0:04:14]} 6. c3 {[%emt 0:06:47]} Bg7 {[%emt 0:02:37]} 7. h4 {[%emt 0:03:38]} Nbd7 {[%emt 0:07:23]} 8. h5 {[%emt 0:08:05]} Nxh5 {[%emt 0:03:47]} 9. Rxh5 {[%emt 0:08:05]} Nxe5 {[%emt 0:05:21]} 10. Rxe5 {[%emt 0:01:03]} Bxe5 {[%emt 0:00:16]} 11. dxe5 {[%emt 0:00:01]} h6 {[%emt 0:02:45]} 12. Bb5+ {[%emt 0:03:32]} Kf8 {[%emt 0:00:04]} 13. Be3 {[%emt 0:02:45]} Be6 {[%emt 0:05:04]} 14. Na3 {[%emt 0:01:34]} a6 {[%emt 0:01:10]} 15. Bd3 {[%emt 0:00:25]} b5 {[%emt 0:01:07]} 16. Nc2 {[%emt 0:00:19]} Qc7 {[%emt 0:01:43]} 17. Bd4 {[%emt 0:04:16]} Rb8 {[%emt 0:01:52]} 18. Qf3 {[%emt 0:00:21]} Ke8 {[%emt 0:02:15]} 19. Nb4 {[%emt 0:03:13]} Qb7 {[%emt 0:00:45]} 20. a4 {[%emt 0:00:09]} Ra8 {[%emt 0:09:56]} 21. axb5 {[%emt 0:02:48]} axb5 {[%emt 0:00:33]} 22. Bxb5+ {[%emt 0:00:20]} Kf8 {[%emt 0:00:01]} 23. Rxa8+ {[%emt 0:01:40]} Qxa8 {[%emt 0:00:04]} 24. Qd1 {[%emt 0:03:18]} h5 {[%emt 0:04:47]} 25. Qa4 {[%emt 0:05:24]} Kg7 {[%emt 0:01:38]} 26. Nc6 {[%emt 0:03:59]} Qb7 {[%emt 0:01:37]} 27. b4 {[%emt 0:03:06]} Ra8 {[%emt 0:00:51]} 28. Na7 {[%emt 0:00:14]} Qc7 {[%emt 0:04:38]} 29. Bc6 {[%emt 0:01:38]} Rxa7 {[%emt 0:03:41]} 30. Bxa7 {[%emt 0:01:17]} Qxe5+ {[%emt 0:00:10]} 31. Kd2 {[%emt 0:00:16]} Qg5+ {[%emt 0:00:29]} 32. Be3 {[%emt 0:00:32]} Qxg2 {[%emt 0:00:02]} 33. b5 {[%emt 0:00:26]} Qh1 {[%emt 0:04:21]} 34. b6 {[%emt 0:02:01]} Bf5 {[%emt 0:00:57]} 35. Bxd5 {[%emt 0:03:26]} Qxd5+ {[%emt 0:00:32]} 36. Qd4+ {[%emt 0:00:07]} 1-0

[Event "Lueneburg Open-A 2019"]
[Site "Lueneburg"]
[Date "2019.08.11"]
[Round "9.25"]
[White "Kroencke, Manfred"]
[Black "Nyenhuis, Yannek"]
[Result "1/2-1/2"]
[ECO "A49"]
[WhiteElo "2047"]
[BlackElo "1927"]
[Annotator "NA"]
[PlyCount "70"]
[EventDate "2019.08.03"]
[EventType "swiss"]
[EventCountry "GER"]
[SourceTitle "playchess.com"]
[Source "ChessBase"]
[SourceQuality "1"]
[TimeControl "40/5400+30:1800+30"]

1. e4 {[%emt 0:00:00]} d6 {[%emt 0:00:00]} 2. d4 {[%emt 0:00:00]} Nf6 {[%emt 0:00:00]} 3. Nd2 {[%emt 0:01:12]} Nbd7 {[%emt 0:00:19]} 4. g3 {[%emt 0:01:45]} e5 {[%emt 0:00:23]} 5. Ngf3 {[%emt 0:00:35]} g6 {[%emt 0:02:19]} 6. Bg2 {[%emt 0:00:57]} Bg7 {[%emt 0:00:21]} 7. O-O {[%emt 0:00:46]} O-O {[%emt 0:00:12]} 8. dxe5 {[%emt 0:00:41]} Nxe5 {[%emt 0:00:27]} 9. Nxe5 {[%emt 0:00:26]} dxe5 {[%emt 0:00:05]} 10. Nc4 {[%emt 0:00:39]} Qe7 {[%emt 0:01:11]} 11. Qe2 {[%emt 0:08:24]} b6 {[%emt 0:02:03]} 12. b3 {[%emt 0:04:52]} Ba6 {[%emt 0:03:06]} 13. a4 {[%emt 0:02:25]} Rfd8 {[%emt 0:06:41]} 14. Be3 {[%emt 0:03:43]} Ne8 {[%emt 0:01:28]} 15. Rfd1 {[%emt 0:09:10]} Nd6 {[%emt 0:00:59]} 16. a5 {[%emt 0:03:09]} Nxc4 {[%emt 0:01:46]} 17. Rxd8+ {[%emt 0:02:43]} Qxd8 {[%emt 0:01:09]} 18. bxc4 {[%emt 0:01:05]} Qe7 {[%emt 0:00:52]} 19. Bf1 {[%emt 0:01:51]} Bb7 {[%emt 0:07:39]} 20. f3 {[%emt 0:07:22]} Bf8 {[%emt 0:05:37]} 21. c5 {[%emt 0:02:30]} bxa5 {[%emt 0:04:27]} 22. Qb5 {[%emt 0:01:54]} c6 {[%emt 0:00:30]} 23. Qxa5 {[%emt 0:00:49]} Bc8 {[%emt 0:06:26]} 24. Bc4 {[%emt 0:00:34]} Be6 {[%emt 0:01:05]} 25. Bxe6 {[%emt 0:00:54]} Qxe6 {[%emt 0:00:43]} 26. Qc7 {[%emt 0:06:16]} Qc4 {[%emt 0:03:43]} 27. Rxa7 {[%emt 0:00:26]} Rxa7 {[%emt 0:00:17]} 28. Qxa7 {[%emt 0:00:21]} Qxc2 {[%emt 0:00:10]} 29. Qb6 {[%emt 0:00:59]} Qa4 {[%emt 0:03:13]} 30. Qd8 {[%emt 0:00:43]} Qb4 {[%emt 0:03:19]} 31. Kg2 {[%emt 0:01:49]} Qc4 {[%emt 0:03:31]} 32. Qc8 {[%emt 0:00:37]} Qe2+ {[%emt 0:02:31]} 33. Bf2 {[%emt 0:00:08]} Qb5 {[%emt 0:00:11]} 34. Qe8 {[%emt 0:00:15]} f6 {[%emt 0:01:40]} 35. Qe6+ {[%emt 0:37:30]} Kg7 {[%emt 0:39:07]} 1/2-1/2